[Event "*** Titled Tuesday Blitz"]
[Site "Chess.com"]
[Date "2020.04.14"]
[Round "5"]
[White "mrkvoz"]
[Black "saikrishnaReturns"]
[Result "0-1"]
[WhiteElo "2781"]
[BlackElo "2626"]
[TimeControl "180+1"]
[EndTime "10:51:36 PDT"]
[Termination "saikrishnaReturns won on time"]

1. e4 {[%clk 0:03:00.9]} 1... e5 {[%clk 0:02:59.6]} 2. Nf3 {[%clk 0:02:59.9]}
2... Nc6 {[%clk 0:02:59.9]} 3. d4 {[%clk 0:03:00.3]} 3... exd4 {[%clk
0:02:59.8]} 4. Nxd4 {[%clk 0:03:01.2]} 4... Nf6 {[%clk 0:03:00.2]} 5. Nxc6
{[%clk 0:03:01.4]} 5... bxc6 {[%clk 0:03:01.1]} 6. Bd3 {[%clk 0:03:01.6]} 6...
d5 {[%clk 0:03:00.9]} 7. exd5 {[%clk 0:03:02.5]} 7... cxd5 {[%clk 0:02:56.2]} 8.
O-O {[%clk 0:03:02.9]} 8... Be7 {[%clk 0:02:51.6]} 9. c4 {[%clk 0:03:02.8]} 9...
d4 {[%clk 0:02:49.1]} 10. Bg5 {[%clk 0:03:01.9]} 10... O-O {[%clk 0:02:45.1]}
11. Nd2 {[%clk 0:03:02]} 11... h6 {[%clk 0:02:43.3]} 12. Bh4 {[%clk 0:03:00.9]}
12... c5 {[%clk 0:02:35]} 13. Re1 {[%clk 0:02:59.3]} 13... Be6 {[%clk
0:02:31.9]} 14. Nf3 {[%clk 0:02:48.4]} 14... Nd7 {[%clk 0:02:13.4]} 15. Bg3
{[%clk 0:02:44.8]} 15... Nb6 {[%clk 0:02:11.4]} 16. b3 {[%clk 0:02:44.2]} 16...
a5 {[%clk 0:02:08.4]} 17. Ne5 {[%clk 0:02:44.1]} 17... Bf6 {[%clk 0:02:00.6]}
18. Ng4 {[%clk 0:02:38.7]} 18... Be7 {[%clk 0:01:33.9]} 19. Ne5 {[%clk
0:02:38.5]} 19... Bf6 {[%clk 0:01:32.2]} 20. Qh5 {[%clk 0:02:38.4]} 20... Qc8
{[%clk 0:01:23]} 21. h3 {[%clk 0:02:32.7]} 21... a4 {[%clk 0:01:21.5]} 22. Ng4
{[%clk 0:02:26.7]} 22... Bxg4 {[%clk 0:01:14.5]} 23. hxg4 {[%clk 0:02:27.6]}
23... axb3 {[%clk 0:01:13.3]} 24. axb3 {[%clk 0:02:26.1]} 24... Rxa1 {[%clk
0:01:03.1]} 25. Rxa1 {[%clk 0:02:27]} 25... g6 {[%clk 0:00:57.8]} 26. Bxg6
{[%clk 0:02:01.3]} 26... fxg6 {[%clk 0:00:50.2]} 27. Qxg6+ {[%clk 0:02:02.2]}
27... Bg7 {[%clk 0:00:49.3]} 28. Qxb6 {[%clk 0:01:42.7]} 28... Qxg4 {[%clk
0:00:47.5]} 29. Qxc5 {[%clk 0:01:41.2]} 29... d3 {[%clk 0:00:44.2]} 30. Qd5+
{[%clk 0:01:40.7]} 30... Kh8 {[%clk 0:00:43.3]} 31. Rf1 {[%clk 0:01:28.2]} 31...
Qe2 {[%clk 0:00:40.5]} 32. c5 {[%clk 0:01:18.6]} 32... d2 {[%clk 0:00:29.6]} 33.
c6 {[%clk 0:00:51.4]} 33... Re8 {[%clk 0:00:20.3]} 34. f3 {[%clk 0:00:51.6]}
34... Qe3+ {[%clk 0:00:15.1]} 35. Kh2 {[%clk 0:00:47.9]} 35... Qe2 {[%clk
0:00:12.7]} 36. Rg1 {[%clk 0:00:38.8]} 36... Be5 {[%clk 0:00:12.6]} 37. Bxe5+
{[%clk 0:00:37.2]} 37... Rxe5 {[%clk 0:00:12.1]} 38. Qd8+ {[%clk 0:00:30.2]}
38... Kg7 {[%clk 0:00:12.1]} 39. Qd7+ {[%clk 0:00:19.7]} 39... Kf6 {[%clk
0:00:12.1]} 40. Qd6+ {[%clk 0:00:18.6]} 40... Kg7 {[%clk 0:00:12.4]} 41. Qd4
{[%clk 0:00:17.1]} 41... Kh7 {[%clk 0:00:11]} 42. Qd7+ {[%clk 0:00:16.1]} 42...
Kg6 {[%clk 0:00:10.5]} 43. Qd6+ {[%clk 0:00:11.5]} 43... Kh7 {[%clk 0:00:10.3]}
44. Qd7+ {[%clk 0:00:09]} 44... Kh8 {[%clk 0:00:07.4]} 45. Qd8+ {[%clk
0:00:06.5]} 45... Kg7 {[%clk 0:00:06.8]} 46. Qd4 {[%clk 0:00:03.4]} 46... Kh7
{[%clk 0:00:06.6]} 47. c7 {[%clk 0:00:01.8]} 47... Rh5+ {[%clk 0:00:06]} 48. Kg3
{[%clk 0:00:02.4]} 48... Qe1+ {[%clk 0:00:06.4]} 0-1

[Event "*** Titled Tuesday Blitz"]
[Site "Chess.com"]
[Date "2020.04.14"]
[Round "5"]
[White "HarryCun"]
[Black "Danfii"]
[Result "1-0"]
[WhiteElo "2140"]
[BlackElo "2312"]
[TimeControl "180+1"]
[EndTime "10:51:36 PDT"]
[Termination "HarryCun won by resignation"]

1. Nf3 {[%clk 0:03:00.9]} 1... d5 {[%clk 0:03:00]} 2. g3 {[%clk 0:03:01.6]} 2...
Bg4 {[%clk 0:02:59.8]} 3. Bg2 {[%clk 0:03:02]} 3... c6 {[%clk 0:03:00.4]} 4. O-O
{[%clk 0:03:02]} 4... e6 {[%clk 0:03:00.8]} 5. d3 {[%clk 0:03:02.4]} 5... Nf6
{[%clk 0:03:01]} 6. Nbd2 {[%clk 0:03:02]} 6... Be7 {[%clk 0:03:00.9]} 7. h3
{[%clk 0:02:59.3]} 7... Bh5 {[%clk 0:03:00.9]} 8. g4 {[%clk 0:02:59.5]} 8... Bg6
{[%clk 0:03:01]} 9. Re1 {[%clk 0:02:59.2]} 9... O-O {[%clk 0:03:00.7]} 10. e4
{[%clk 0:02:59]} 10... a5 {[%clk 0:02:57.7]} 11. e5 {[%clk 0:02:58.5]} 11...
Nfd7 {[%clk 0:02:57.8]} 12. d4 {[%clk 0:02:59.1]} 12... c5 {[%clk 0:02:56.3]}
13. c3 {[%clk 0:02:52.6]} 13... Nc6 {[%clk 0:02:55]} 14. Nf1 {[%clk 0:02:47]}
14... b5 {[%clk 0:02:52.7]} 15. Ng3 {[%clk 0:02:38.5]} 15... cxd4 {[%clk
0:02:43.8]} 16. cxd4 {[%clk 0:02:37.5]} 16... Nb4 {[%clk 0:02:43.9]} 17. g5
{[%clk 0:02:00.4]} 17... Nc2 {[%clk 0:02:40.3]} 18. Bf4 {[%clk 0:02:00.1]} 18...
Nxa1 {[%clk 0:02:39.3]} 19. Qxa1 {[%clk 0:02:00.1]} 19... Rc8 {[%clk 0:02:38]}
20. h4 {[%clk 0:01:59.5]} 20... Bb4 {[%clk 0:02:16.5]} 21. Rd1 {[%clk
0:01:50.2]} 21... Bc2 {[%clk 0:02:15.7]} 22. Rc1 {[%clk 0:01:49.9]} 22... Be4
{[%clk 0:02:09.3]} 23. a3 {[%clk 0:01:48]} 23... Rxc1+ {[%clk 0:02:02.3]} 24.
Qxc1 {[%clk 0:01:46.6]} 24... Be7 {[%clk 0:02:03.2]} 25. Nh2 {[%clk 0:01:30.6]}
25... Bxg2 {[%clk 0:02:03]} 26. Kxg2 {[%clk 0:01:31.5]} 26... Qc8 {[%clk
0:02:02.4]} 27. Qe3 {[%clk 0:01:31]} 27... Qc2 {[%clk 0:01:43]} 28. Ng4 {[%clk
0:01:29.5]} 28... b4 {[%clk 0:01:40.8]} 29. axb4 {[%clk 0:01:15.2]} 29... axb4
{[%clk 0:01:40.7]} 30. Nf6+ {[%clk 0:00:54.5]} 30... gxf6 {[%clk 0:01:30.5]} 31.
gxf6 {[%clk 0:00:54.6]} 31... Nxf6 {[%clk 0:01:27.1]} 32. exf6 {[%clk
0:00:54.4]} 32... Bxf6 {[%clk 0:01:28]} 33. Bh6 {[%clk 0:00:54.3]} 33... Rc8
{[%clk 0:01:06.4]} 34. Qf4 {[%clk 0:00:46.3]} 34... Bg7 {[%clk 0:00:55.1]} 35.
h5 {[%clk 0:00:46.4]} 35... Bxh6 {[%clk 0:00:36.3]} 36. Qxh6 {[%clk 0:00:47.3]}
36... Qd3 {[%clk 0:00:31.5]} 37. Qf6 {[%clk 0:00:44]} 37... b3 {[%clk
0:00:22.9]} 38. Kh3 {[%clk 0:00:42.2]} 38... Kf8 {[%clk 0:00:12.8]} 39. Qh8+
{[%clk 0:00:39.7]} 39... Ke7 {[%clk 0:00:13.3]} 40. Qxc8 {[%clk 0:00:39.8]}
40... Qc2 {[%clk 0:00:13.9]} 41. Qxc2 {[%clk 0:00:34.9]} 41... bxc2 {[%clk
0:00:14.8]} 42. Ne2 {[%clk 0:00:35.1]} 42... Kd7 {[%clk 0:00:15.4]} 43. Kg3
{[%clk 0:00:35.3]} 43... Kc6 {[%clk 0:00:15.6]} 44. Kf3 {[%clk 0:00:35.5]} 44...
Kb5 {[%clk 0:00:15.4]} 45. Ke3 {[%clk 0:00:35.3]} 45... Kb4 {[%clk 0:00:15.6]}
46. Nc1 {[%clk 0:00:34.8]} 46... f6 {[%clk 0:00:13]} 47. Kd2 {[%clk 0:00:34.5]}
47... e5 {[%clk 0:00:13.9]} 48. Kxc2 {[%clk 0:00:33.6]} 48... e4 {[%clk
0:00:10]} 49. Ne2 {[%clk 0:00:30.9]} 49... f5 {[%clk 0:00:08.8]} 50. Nf4 {[%clk
0:00:29.8]} 50... Kc4 {[%clk 0:00:08.9]} 51. Ne2 {[%clk 0:00:25.4]} 51... Kb4
{[%clk 0:00:06]} 52. b3 {[%clk 0:00:25.1]} 52... h6 {[%clk 0:00:05.4]} 53. Nf4
{[%clk 0:00:24.9]} 1-0

[Event "*** Titled Tuesday Blitz"]
[Site "Chess.com"]
[Date "2020.04.14"]
[Round "5"]
[White "GracefulYear"]
[Black "NFChess13"]
[Result "1-0"]
[WhiteElo "2692"]
[BlackElo "2449"]
[TimeControl "180+1"]
[EndTime "10:51:37 PDT"]
[Termination "GracefulYear won by resignation"]

1. d4 {[%clk 0:02:43.7]} 1... Nf6 {[%clk 0:02:59.5]} 2. Nf3 {[%clk 0:02:44.6]}
2... g6 {[%clk 0:02:59.4]} 3. c4 {[%clk 0:02:45.5]} 3... Bg7 {[%clk 0:02:59.3]}
4. g3 {[%clk 0:02:45.8]} 4... O-O {[%clk 0:02:58.8]} 5. Bg2 {[%clk 0:02:45.7]}
5... c6 {[%clk 0:02:59.2]} 6. O-O {[%clk 0:02:46.6]} 6... d5 {[%clk 0:02:59.7]}
7. cxd5 {[%clk 0:02:46.5]} 7... cxd5 {[%clk 0:03:00.6]} 8. Ne5 {[%clk 0:02:47]}
8... Nc6 {[%clk 0:02:59.5]} 9. Nxc6 {[%clk 0:02:46.8]} 9... bxc6 {[%clk
0:03:00.4]} 10. Nc3 {[%clk 0:02:47]} 10... Bf5 {[%clk 0:02:57.1]} 11. b3 {[%clk
0:02:46.1]} 11... Nd7 {[%clk 0:02:21.2]} 12. Ba3 {[%clk 0:02:37.7]} 12... Re8
{[%clk 0:02:20]} 13. Na4 {[%clk 0:02:36.2]} 13... e5 {[%clk 0:02:18.8]} 14. e3
{[%clk 0:02:36.5]} 14... Rc8 {[%clk 0:02:14.8]} 15. Rc1 {[%clk 0:02:36.5]} 15...
Qa5 {[%clk 0:02:12]} 16. Bb2 {[%clk 0:02:09.3]} 16... h5 {[%clk 0:02:08.8]} 17.
a3 {[%clk 0:02:04.3]} 17... h4 {[%clk 0:02:04.2]} 18. b4 {[%clk 0:02:03.1]}
18... Qd8 {[%clk 0:02:00.1]} 19. g4 {[%clk 0:01:50.3]} 19... Be6 {[%clk
0:01:58.9]} 20. h3 {[%clk 0:01:50.7]} 20... a5 {[%clk 0:01:55.1]} 21. Nc5 {[%clk
0:01:48.5]} 21... Nxc5 {[%clk 0:01:39.5]} 22. Rxc5 {[%clk 0:01:45]} 22... axb4
{[%clk 0:01:38.5]} 23. axb4 {[%clk 0:01:43.9]} 23... Bf8 {[%clk 0:01:36.3]} 24.
Rc2 {[%clk 0:01:39.2]} 24... Bxb4 {[%clk 0:01:29.9]} 25. dxe5 {[%clk 0:01:37.4]}
25... c5 {[%clk 0:01:27.9]} 26. Qf3 {[%clk 0:01:29.9]} 26... Qa5 {[%clk
0:01:21.9]} 27. Qf6 {[%clk 0:01:21.4]} 27... Qd8 {[%clk 0:01:14.2]} 28. Qf4
{[%clk 0:01:11.1]} 28... c4 {[%clk 0:00:57]} 29. Bd4 {[%clk 0:01:06.9]} 29...
Be7 {[%clk 0:00:54.4]} 30. e4 {[%clk 0:01:03.2]} 30... Bg5 {[%clk 0:00:50.8]}
31. Qf3 {[%clk 0:01:01.4]} 31... dxe4 {[%clk 0:00:45.8]} 32. Qxe4 {[%clk
0:01:02.3]} 32... Bd7 {[%clk 0:00:26.4]} 33. Qd5 {[%clk 0:00:38.6]} 33... Bc6
{[%clk 0:00:19.8]} 34. Qxd8 {[%clk 0:00:36.8]} 34... Rexd8 {[%clk 0:00:19.3]}
35. Rxc4 {[%clk 0:00:34.7]} 35... Bxg2 {[%clk 0:00:17]} 36. Rxc8 {[%clk
0:00:34.7]} 36... Bxf1 {[%clk 0:00:06.3]} 37. Rxd8+ {[%clk 0:00:33.9]} 37...
Bxd8 {[%clk 0:00:07.2]} 38. Kxf1 {[%clk 0:00:34]} 38... Kf8 {[%clk 0:00:07.7]}
39. Ke2 {[%clk 0:00:33.6]} 39... Ke7 {[%clk 0:00:08.2]} 40. f4 {[%clk
0:00:33.5]} 40... Ke6 {[%clk 0:00:08.8]} 41. Ke3 {[%clk 0:00:33.9]} 41... Ba5
{[%clk 0:00:07.1]} 42. Ke4 {[%clk 0:00:32.1]} 42... Be1 {[%clk 0:00:07.5]} 43.
Bb6 {[%clk 0:00:30.9]} 43... f6 {[%clk 0:00:07.1]} 44. f5+ {[%clk 0:00:30.3]}
44... gxf5+ {[%clk 0:00:06.9]} 45. gxf5+ {[%clk 0:00:29.6]} 45... Kf7 {[%clk
0:00:07.4]} 46. e6+ {[%clk 0:00:28.1]} 46... Ke8 {[%clk 0:00:07.9]} 47. Kf4
{[%clk 0:00:25.6]} 47... Bd2+ {[%clk 0:00:06.9]} 48. Kg4 {[%clk 0:00:25.4]}
48... Be1 {[%clk 0:00:07.2]} 49. Kh5 {[%clk 0:00:24.8]} 49... Ke7 {[%clk
0:00:07.4]} 50. Bc5+ {[%clk 0:00:23]} 50... Ke8 {[%clk 0:00:05.5]} 51. Kg6
{[%clk 0:00:22.8]} 51... Bc3 {[%clk 0:00:04.3]} 52. Bf2 {[%clk 0:00:22.1]} 52...
Ke7 {[%clk 0:00:05.2]} 53. Bxh4 {[%clk 0:00:22]} 53... Be5 {[%clk 0:00:06.1]}
54. Bf2 {[%clk 0:00:21.2]} 1-0

[Event "*** Titled Tuesday Blitz"]
[Site "Chess.com"]
[Date "2020.04.14"]
[Round "5"]
[White "AlanZhang"]
[Black "ENEASZ"]
[Result "0-1"]
[WhiteElo "2176"]
[BlackElo "2500"]
[TimeControl "180+1"]
[EndTime "10:51:37 PDT"]
[Termination "ENEASZ won on time"]

1. e4 {[%clk 0:03:00.9]} 1... d6 {[%clk 0:02:57.8]} 2. d4 {[%clk 0:02:52.7]}
2... Nf6 {[%clk 0:02:57]} 3. Nc3 {[%clk 0:02:46.9]} 3... e5 {[%clk 0:02:56.9]}
4. d5 {[%clk 0:02:45.9]} 4... Be7 {[%clk 0:02:53.8]} 5. f3 {[%clk 0:02:44]} 5...
O-O {[%clk 0:02:53.4]} 6. Be3 {[%clk 0:02:42.4]} 6... c6 {[%clk 0:02:52.8]} 7.
dxc6 {[%clk 0:02:38.2]} 7... bxc6 {[%clk 0:02:42.2]} 8. Bc4 {[%clk 0:02:36.6]}
8... Bb7 {[%clk 0:02:35.7]} 9. Bb3 {[%clk 0:02:14.5]} 9... d5 {[%clk 0:02:34.3]}
10. exd5 {[%clk 0:02:14.2]} 10... cxd5 {[%clk 0:02:35.2]} 11. Nce2 {[%clk
0:02:08]} 11... d4 {[%clk 0:02:33.7]} 12. Bd2 {[%clk 0:02:03]} 12... a5 {[%clk
0:02:24.2]} 13. a4 {[%clk 0:01:55.2]} 13... Nbd7 {[%clk 0:02:22.1]} 14. Nh3
{[%clk 0:01:41.3]} 14... Nc5 {[%clk 0:02:21.6]} 15. Bc4 {[%clk 0:01:40.7]} 15...
h6 {[%clk 0:01:27.3]} 16. O-O {[%clk 0:01:39]} 16... Re8 {[%clk 0:01:27.4]} 17.
Ng3 {[%clk 0:01:38.2]} 17... Qd7 {[%clk 0:01:24.7]} 18. Nf2 {[%clk 0:01:34.7]}
18... Nxa4 {[%clk 0:01:20]} 19. Qe2 {[%clk 0:01:28.5]} 19... Nxb2 {[%clk
0:01:14.8]} 20. Bb5 {[%clk 0:01:06.3]} 20... d3 {[%clk 0:01:14.9]} 21. Bxd3
{[%clk 0:01:04.1]} 21... Nxd3 {[%clk 0:01:14.3]} 22. Nxd3 {[%clk 0:01:03]} 22...
a4 {[%clk 0:01:04.6]} 23. Qxe5 {[%clk 0:00:49]} 23... a3 {[%clk 0:00:43.5]} 24.
Qc3 {[%clk 0:00:47.8]} 24... a2 {[%clk 0:00:40.7]} 25. Nb4 {[%clk 0:00:29.5]}
25... Nd5 {[%clk 0:00:35]} 26. Nxd5 {[%clk 0:00:28.2]} 26... Qxd5 {[%clk
0:00:35.9]} 27. Ne4 {[%clk 0:00:26.5]} 27... f5 {[%clk 0:00:33.5]} 28. Nf2
{[%clk 0:00:19]} 28... Bf6 {[%clk 0:00:32.6]} 29. Qb4 {[%clk 0:00:19.1]} 29...
Bxa1 {[%clk 0:00:30.7]} 30. Rxa1 {[%clk 0:00:20]} 30... Kh7 {[%clk 0:00:27.1]}
31. Nd3 {[%clk 0:00:19.8]} 31... Ba6 {[%clk 0:00:23.9]} 32. Nc5 {[%clk
0:00:14.4]} 32... Qc4 {[%clk 0:00:21.6]} 33. Nxa6 {[%clk 0:00:13.5]} 33... Qxa6
{[%clk 0:00:21.9]} 34. Qf4 {[%clk 0:00:12.3]} 34... Qb5 {[%clk 0:00:20.1]} 35.
Bc3 {[%clk 0:00:11.9]} 35... Qb1+ {[%clk 0:00:18.1]} 36. Kf2 {[%clk 0:00:11.9]}
36... Qb6+ {[%clk 0:00:18.1]} 37. Kg3 {[%clk 0:00:11.3]} 37... Qc5 {[%clk
0:00:15.4]} 38. Qd2 {[%clk 0:00:08.1]} 38... Red8 {[%clk 0:00:10.5]} 39. Qe1
{[%clk 0:00:06.4]} 39... Re8 {[%clk 0:00:08.3]} 40. Qd2 {[%clk 0:00:06.1]} 40...
Rad8 {[%clk 0:00:08.5]} 41. Qf4 {[%clk 0:00:04.2]} 41... Qxc3 {[%clk 0:00:08.7]}
42. Qxf5+ {[%clk 0:00:04]} 42... g6 {[%clk 0:00:09.1]} 43. Qf7+ {[%clk 0:00:03]}
43... Qg7 {[%clk 0:00:09.2]} 44. Qxg7+ {[%clk 0:00:03.4]} 44... Kxg7 {[%clk
0:00:10.1]} 45. Rxa2 {[%clk 0:00:03.6]} 45... Ra8 {[%clk 0:00:10.1]} 46. Rb2
{[%clk 0:00:03.5]} 46... Reb8 {[%clk 0:00:10.3]} 47. Rb3 {[%clk 0:00:02.7]}
47... Rxb3 {[%clk 0:00:10.2]} 48. cxb3 {[%clk 0:00:03.6]} 48... Rb8 {[%clk
0:00:11.1]} 49. Kf4 {[%clk 0:00:03.5]} 49... Rxb3 {[%clk 0:00:12]} 50. Ke5
{[%clk 0:00:03.9]} 50... Rb5+ {[%clk 0:00:12.8]} 51. Ke4 {[%clk 0:00:03.7]}
51... Rb2 {[%clk 0:00:13.7]} 52. g3 {[%clk 0:00:02.8]} 52... Rg2 {[%clk
0:00:14.6]} 53. f4 {[%clk 0:00:01.6]} 53... Rxh2 {[%clk 0:00:14.6]} 0-1

[Event "*** Titled Tuesday Blitz"]
[Site "Chess.com"]
[Date "2020.04.14"]
[Round "5"]
[White "pollo2016"]
[Black "Gulkov_Igor"]
[Result "0-1"]
[WhiteElo "2566"]
[BlackElo "2397"]
[TimeControl "180+1"]
[EndTime "10:51:37 PDT"]
[Termination "Gulkov_Igor won by resignation"]

1. d4 {[%clk 0:03:00.9]} 1... Nf6 {[%clk 0:02:59.1]} 2. c4 {[%clk 0:03:00.3]}
2... g6 {[%clk 0:02:59.2]} 3. Nc3 {[%clk 0:02:59.9]} 3... Bg7 {[%clk 0:02:59.4]}
4. e4 {[%clk 0:02:59.6]} 4... d6 {[%clk 0:02:59.9]} 5. Nge2 {[%clk 0:02:59]}
5... O-O {[%clk 0:02:59.7]} 6. Ng3 {[%clk 0:02:58.5]} 6... e5 {[%clk 0:02:59.8]}
7. d5 {[%clk 0:02:58.1]} 7... a5 {[%clk 0:02:59.9]} 8. Be2 {[%clk 0:02:57.7]}
8... Na6 {[%clk 0:02:58.8]} 9. Be3 {[%clk 0:02:57.5]} 9... h5 {[%clk 0:02:55.1]}
10. h4 {[%clk 0:02:55.8]} 10... Bd7 {[%clk 0:02:53.4]} 11. Qd2 {[%clk
0:02:54.8]} 11... Nc5 {[%clk 0:02:51.3]} 12. f3 {[%clk 0:02:52.3]} 12... a4
{[%clk 0:02:50.6]} 13. Bh6 {[%clk 0:02:49.9]} 13... Bxh6 {[%clk 0:02:35.4]} 14.
Qxh6 {[%clk 0:02:44.6]} 14... Nh7 {[%clk 0:02:33.3]} 15. Nf1 {[%clk 0:01:56.8]}
15... Qf6 {[%clk 0:02:27.2]} 16. g3 {[%clk 0:01:53.8]} 16... Qg7 {[%clk
0:02:13.1]} 17. Qxg7+ {[%clk 0:01:45.8]} 17... Kxg7 {[%clk 0:02:13]} 18. g4
{[%clk 0:01:46.1]} 18... hxg4 {[%clk 0:02:06.5]} 19. fxg4 {[%clk 0:01:46.2]}
19... Nf6 {[%clk 0:02:06.7]} 20. Nd2 {[%clk 0:01:14.7]} 20... Bxg4 {[%clk
0:01:56.5]} 21. Bxg4 {[%clk 0:01:08.7]} 21... Nxg4 {[%clk 0:01:56.1]} 22. Ke2
{[%clk 0:01:08.5]} 22... Nf6 {[%clk 0:01:53.8]} 23. Rag1 {[%clk 0:01:07.5]}
23... Nh5 {[%clk 0:01:53.8]} 24. Ke3 {[%clk 0:01:05.7]} 24... c6 {[%clk
0:01:43.7]} 25. Ne2 {[%clk 0:01:03.8]} 25... Rh8 {[%clk 0:01:25.3]} 26. Rg4
{[%clk 0:01:02.4]} 26... Nf6 {[%clk 0:01:16.5]} 27. Rg3 {[%clk 0:00:58.7]} 27...
Nh5 {[%clk 0:01:11.8]} 28. Rg4 {[%clk 0:00:58.3]} 28... Rh7 {[%clk 0:01:07]} 29.
Ng3 {[%clk 0:00:55.5]} 29... Nxg3 {[%clk 0:00:57.3]} 30. Rxg3 {[%clk 0:00:54.9]}
30... Rah8 {[%clk 0:00:57.7]} 31. Nf3 {[%clk 0:00:51.6]} 31... Rh5 {[%clk
0:00:50.3]} 32. Rg4 {[%clk 0:00:51.1]} 32... Kf6 {[%clk 0:00:47.4]} 33. Ng5
{[%clk 0:00:50]} 33... Ke7 {[%clk 0:00:45.9]} 34. Nf3 {[%clk 0:00:49.8]} 34...
Nd7 {[%clk 0:00:40.4]} 35. b4 {[%clk 0:00:46.6]} 35... axb3 {[%clk 0:00:34.4]}
36. axb3 {[%clk 0:00:46.2]} 36... Ra8 {[%clk 0:00:34.6]} 37. dxc6 {[%clk
0:00:44.4]} 37... bxc6 {[%clk 0:00:34.2]} 38. Nd2 {[%clk 0:00:41.1]} 38... Nc5
{[%clk 0:00:33]} 39. b4 {[%clk 0:00:36.9]} 39... Ra3+ {[%clk 0:00:32]} 40. Ke2
{[%clk 0:00:36.3]} 40... Ne6 {[%clk 0:00:32]} 41. Rb1 {[%clk 0:00:36]} 41... Rh8
{[%clk 0:00:27.2]} 42. b5 {[%clk 0:00:35]} 42... Rb8 {[%clk 0:00:26.9]} 43. bxc6
{[%clk 0:00:23.2]} 43... Rxb1 {[%clk 0:00:25.6]} 44. Nxb1 {[%clk 0:00:23.3]}
44... Ra6 {[%clk 0:00:25.8]} 45. Nc3 {[%clk 0:00:22.9]} 45... Rxc6 {[%clk
0:00:24.6]} 46. Nd5+ {[%clk 0:00:22.9]} 46... Kf8 {[%clk 0:00:24.4]} 47. Kd3
{[%clk 0:00:22.3]} 47... Ra6 {[%clk 0:00:23.4]} 48. h5 {[%clk 0:00:22]} 48...
Ra3+ {[%clk 0:00:21]} 49. Kd2 {[%clk 0:00:21.9]} 49... gxh5 {[%clk 0:00:20.8]}
50. Rh4 {[%clk 0:00:21.8]} 50... Ng5 {[%clk 0:00:16.2]} 51. Nc3 {[%clk
0:00:20.9]} 51... Nf3+ {[%clk 0:00:13.5]} 0-1

[Event "*** Titled Tuesday Blitz"]
[Site "Chess.com"]
[Date "2020.04.14"]
[Round "5"]
[White "H3nriqueTV"]
[Black "GasconJR"]
[Result "0-1"]
[WhiteElo "2230"]
[BlackElo "2442"]
[TimeControl "180+1"]
[EndTime "10:51:37 PDT"]
[Termination "GasconJR won on time"]

1. e4 {[%clk 0:02:52.1]} 1... e5 {[%clk 0:02:54]} 2. Nf3 {[%clk 0:02:47]} 2...
Nc6 {[%clk 0:02:54.5]} 3. Bb5 {[%clk 0:02:46.7]} 3... Nf6 {[%clk 0:02:54.3]} 4.
d3 {[%clk 0:02:46.5]} 4... Bc5 {[%clk 0:02:54.1]} 5. c3 {[%clk 0:02:46.7]} 5...
d5 {[%clk 0:02:54.2]} 6. Nxe5 {[%clk 0:02:40.2]} 6... O-O {[%clk 0:02:53.3]} 7.
d4 {[%clk 0:02:39.2]} 7... Nxe5 {[%clk 0:02:51]} 8. dxc5 {[%clk 0:02:27.4]} 8...
dxe4 {[%clk 0:02:42]} 9. Qxd8 {[%clk 0:02:26.2]} 9... Rxd8 {[%clk 0:02:42.9]}
10. Bf4 {[%clk 0:02:25.4]} 10... Rd5 {[%clk 0:02:22.5]} 11. b4 {[%clk
0:02:05.2]} 11... c6 {[%clk 0:01:50.8]} 12. Bxe5 {[%clk 0:01:57.2]} 12... Rxe5
{[%clk 0:01:43.1]} 13. Be2 {[%clk 0:01:54.7]} 13... Bg4 {[%clk 0:01:36.9]} 14.
Nd2 {[%clk 0:01:44.7]} 14... e3 {[%clk 0:01:34.1]} 15. Nf3 {[%clk 0:01:30.8]}
15... exf2+ {[%clk 0:01:33.8]} 16. Kxf2 {[%clk 0:01:31.4]} 16... Ne4+ {[%clk
0:01:32.5]} 17. Ke3 {[%clk 0:01:29.5]} 17... Re7 {[%clk 0:01:29.9]} 18. Kf4
{[%clk 0:00:59.5]} 18... f5 {[%clk 0:01:24.2]} 19. Bc4+ {[%clk 0:00:55.1]} 19...
Kf8 {[%clk 0:01:15.8]} 20. Ng5 {[%clk 0:00:47.1]} 20... Nxg5 {[%clk 0:01:13.7]}
21. Kxg5 {[%clk 0:00:47]} 21... Re4 {[%clk 0:00:31]} 22. Bd3 {[%clk 0:00:42.3]}
22... h6+ {[%clk 0:00:29.3]} 23. Kg6 {[%clk 0:00:28.9]} 23... Re6+ {[%clk
0:00:29.1]} 24. Kh7 {[%clk 0:00:28.3]} 24... Rd8 {[%clk 0:00:18.4]} 25. Bc4
{[%clk 0:00:23.8]} 25... Rf6 {[%clk 0:00:14]} 26. Rhe1 {[%clk 0:00:20]} 26...
Bh5 {[%clk 0:00:14]} 27. Re5 {[%clk 0:00:15.6]} 27... Bg6+ {[%clk 0:00:13.6]}
28. Kh8 {[%clk 0:00:16.1]} 28... Bf7 {[%clk 0:00:14.5]} 29. Bxf7 {[%clk
0:00:14.6]} 29... Rxf7 {[%clk 0:00:13.5]} 30. Kh7 {[%clk 0:00:11.3]} 30... Rf6
{[%clk 0:00:07.1]} 31. Rae1 {[%clk 0:00:11]} 31... Rd7 {[%clk 0:00:06.7]} 32.
Re8+ {[%clk 0:00:10.9]} 32... Kf7 {[%clk 0:00:07]} 33. Rg8 {[%clk 0:00:09.9]}
33... Rg6 {[%clk 0:00:04.2]} 34. Ree8 {[%clk 0:00:09.3]} 34... Kf6 {[%clk
0:00:04.7]} 35. h4 {[%clk 0:00:08.1]} 35... Rxg2 {[%clk 0:00:04.2]} 36. Rgf8+
{[%clk 0:00:01.6]} 36... Rf7 {[%clk 0:00:03.9]} 37. Rxf7+ {[%clk 0:00:02.5]}
37... Kxf7 {[%clk 0:00:04.8]} 38. Rb8 {[%clk 0:00:03.1]} 38... g5 {[%clk
0:00:04.6]} 39. Rxb7+ {[%clk 0:00:03.7]} 39... Kf6 {[%clk 0:00:04.9]} 40. h5
{[%clk 0:00:02.9]} 40... g4 {[%clk 0:00:04.9]} 41. Kxh6 {[%clk 0:00:03.4]} 41...
g3 {[%clk 0:00:05.5]} 42. Rg7 {[%clk 0:00:02.9]} 42... f4 {[%clk 0:00:05.1]} 43.
Rg6+ {[%clk 0:00:03.2]} 43... Kf5 {[%clk 0:00:05.2]} 44. Kg7 {[%clk 0:00:03.2]}
44... Rh2 {[%clk 0:00:05.5]} 45. h6 {[%clk 0:00:02.5]} 45... g2 {[%clk 0:00:06]}
46. h7 {[%clk 0:00:02.8]} 46... f3 {[%clk 0:00:05.7]} 47. Rg3 {[%clk 0:00:01.3]}
47... Kf4 {[%clk 0:00:04.5]} 0-1